bitfinex-derivatives/quotes_ETHF0:USTF0_20241005
["timestamp","ask_amount","ask_price","bid_price","bid_amount"]
[1728144931339,0.29059,2408.8,2408.6,0.2906]
[1728144932025,0.29059,2408.8,2408.5,3.2781]
[1728144932230,3.1587,2408.9,2408.6,0.2906]
[1728144932431,0.29058,2408.8,2408.6,0.2906]
[1728144933833,0.29058,2408.8,2408.7,1.6026]
[1728144936835,0.29058,2408.8,2408.2,0.096]
[1728144936836,0.29064,2408.4,2408.2,0.096]
[1728144937141,0.29064,2408.4,2408.2,1.5187]
[1728144937142,1.49,2408.4,2408.2,1.5187]
[1728144937435,3.51264,2408.3,2408.2,1.5187]
[1728144937840,3.222,2408.3,2408.2,1.5187]
[1728144938427,4.28719838,2408.5,2408.2,1.80935]
[1728144938833,0.29063,2408.4,2408.2,1.5187]
[1728144939229,4.28719838,2408.5,2408.2,1.80935]
[1728144939230,4.57781838,2408.5,2408.2,1.80935]
[1728144940343,4.28719838,2408.5,2408.2,1.5187]
[1728144940543,3.2078,2408.5,2408.3,0.29064]
[1728144940739,3.2078,2408.5,2408.2,1.5187]
[1728144940740,3.2078,2408.5,2408.2,3.0087]
[1728144940947,3.2078,2408.5,2408.4,0.29063]
[1728144943336,1.36999838,2408.7,2408.5,0.29062]
[1728144943634,1.36999838,2408.7,2408.6,1.5824]
[1728144944237,1.37240301,2408.7,2408.6,1.5824]
[1728144944439,1.08180301,2408.7,2408.6,1.5824]
[1728144944636,1.37239301,2408.7,2408.6,1.5824]
[1728144945351,4.96950135,2408.8,2408.6,3.2155]
[1728144945542,1.08199592,2408.7,2408.6,4.8824]
[1728144945941,1.37258592,2408.7,2408.6,3.2155]
[1728144946248,1.91610135,2408.7,2408.6,1.5824]
[1728144950744,0.29059,2408.7,2408.6,1.5824]
[1728144951455,5.25975045,2408.8,2408.4,1.6331]
[1728144951456,0.29062,2408.5,2408.4,1.6331]
[1728144951758,0.29062,2408.5,2408.3,3.2078]
[1728144951759,0.29063,2408.4,2408.3,3.2078]
[1728144951959,0.29069,2407.9,2407.8,3.3038]
[1728144952152,0.72662,2408.3,2407.8,5.1421]
[1728144952153,1.37335685,2408.0,2407.8,5.1421]
[1728144952353,1.08266685,2408.0,2407.8,4.8514]
[1728144952555,3.02225685,2407.9,2407.8,4.8514]
[1728144953259,3.02225685,2407.9,2407.8,3.2078]
[1728144954559,4.51225685,2407.9,2407.8,3.2078]
[1728144954953,5.05359028,2407.9,2407.8,3.2078]
[1728144955149,4.51191445,2407.9,2407.8,3.2078]
[1728144955859,5.05359028,2407.9,2407.8,3.2078]
[1728144957266,4.76290028,2407.9,2407.4,4.6597]
[1728144957558,0.29071,2407.7,2407.5,0.29074]
[1728144958152,1.08197713,2407.8,2407.4,3.1697]
[1728144958462,1.08197713,2407.7,2407.6,1.78073]
[1728144958662,1.08197713,2407.8,2407.6,5.6436]
[1728144958859,1.08197713,2408.0,2407.9,0.29069]
[1728144959161,4.28977713,2408.1,2407.8,1.49]
[1728144959462,1.08198491,2408.0,2407.9,1.5778]
[1728144959966,5.77978491,2408.1,2407.9,1.86849]
[1728144960364,1.08198491,2408.0,2407.9,1.86849]
[1728144961559,5.77978491,2408.1,2407.9,1.86849]
[1728144961757,5.77978491,2408.1,2407.9,1.5778]
[1728144961961,5.77978491,2408.1,2407.9,1.86848]
[1728144964067,5.77978491,2408.1,2407.9,1.5778]
[1728144964268,6.07045491,2408.1,2407.9,1.5778]
[1728144964564,1.08198491,2408.0,2407.9,1.86849]
[1728144966268,4.28978491,2408.1,2407.9,3.0678]
[1728144966456,4.28978491,2408.1,2408.0,0.29068]
[1728144966662,1.08198491,2408.1,2408.0,0.29068]
[1728144966859,3.17810028,2408.3,2408.1,0.29067]
[1728144966860,1.08198491,2408.2,2408.1,0.29067]
[1728144967066,1.08198491,2408.3,2408.1,1.49]
[1728144967367,1.08198491,2408.3,2408.2,0.29065]
[1728144967769,4.28978491,2408.4,2408.3,0.29064]
[1728144968063,4.28978491,2408.4,2408.3,1.81364]
[1728144969364,4.28978491,2408.4,2408.3,3.30364]
[1728144971556,1.08198491,2408.4,2408.3,3.30364]
[1728144971756,1.08198491,2408.5,2408.3,3.30364]
[1728144971957,1.08198491,2408.5,2408.3,3.013]
[1728144972160,1.08198491,2408.5,2408.3,3.30364]
[1728144972668,1.08198491,2408.5,2408.4,0.29063]
[1728144972862,1.08198491,2408.5,2408.3,3.30363]
[1728144973060,1.08198491,2408.5,2408.4,0.29063]
[1728144973272,1.08198491,2408.5,2408.3,3.30364]
[1728144973769,1.08198491,2408.5,2408.3,1.81364]
[1728144973770,1.08198491,2408.4,2408.3,1.81364]
[1728144975469,1.08198491,2408.4,2408.3,1.523]
[1728144977671,1.08198491,2408.4,2408.3,1.81364]
[1728144977968,1.62400028,2408.5,2408.4,0.29063]
[1728144977969,1.08198491,2408.5,2408.4,0.29063]
[1728144978269,1.08198491,2408.7,2408.4,1.49]
[1728144978472,1.08198491,2408.7,2408.6,0.29061]
[1728144979877,1.08198491,2408.8,2408.6,10.49037041]
[1728144980174,1.08198491,2408.8,2408.7,3.42269]
[1728144980368,1.08198491,2408.8,2408.7,5.00749]
[1728144980569,1.08198491,2408.9,2408.7,5.00749]
[1728144981171,1.08198491,2408.9,2408.7,4.7169]
[1728144981367,1.08198491,2408.9,2408.8,0.29058]
[1728144982176,1.08198491,2408.9,2408.8,1.87088]
[1728144982371,1.08198491,2409.0,2408.8,1.5803]
[1728144982577,1.08198491,2409.1,2408.9,1.49]
[1728144982873,1.08198491,2409.1,2408.9,1.78056]
[1728144983574,4.58032491,2409.2,2408.9,1.78056]
[1728144983763,4.28978491,2409.2,2409.0,1.49]
[1728144983965,4.28978491,2409.2,2409.1,1.86435]
[1728144983966,1.08198491,2409.2,2409.1,1.86435]
[1728144984169,2.62008491,2409.3,2409.1,3.44635]
[1728144984677,2.62008491,2409.3,2409.1,3.1558]
[1728144984879,2.62008491,2409.3,2409.1,3.44634]
[1728144985070,2.62008491,2409.3,2409.1,3.1558]
[1728144985071,1.5381,2409.3,2409.1,3.1558]
[1728144985367,1.82863,2409.3,2409.1,3.1558]
[1728144985572,1.5381,2409.3,2409.1,3.1558]
[1728144986476,1.5381,2409.3,2409.1,3.44635]
[1728144987476,1.5381,2409.3,2409.1,3.44634]
[1728144987867,1.5381,2409.3,2409.2,0.29053]
[1728144988067,3.3146,2409.4,2409.2,0.29053]
[1728144988275,1.6419,2409.4,2409.2,0.29053]
[1728144989075,1.6419,2409.4,2409.1,4.6458]
[1728144989275,1.6419,2409.4,2409.2,0.29053]
[1728144991577,1.6677,2409.5,2409.4,0.29051]
[1728144991771,1.6677,2409.5,2409.3,7.86780288]
[1728144991969,1.6677,2409.5,2409.3,3.31271]
[1728144992375,1.6677,2409.5,2409.4,4.55509288]
[1728144993967,0.29051,2409.4,2409.1,5.07215]
[1728144994171,1.92101,2409.4,2409.1,1.5738]
[1728144995371,1.6305,2409.4,2409.0,1.49]
[1728144995572,0.29053,2409.3,2408.9,6.4459]
[1728144995975,1.5913,2409.2,2409.0,4.68693089]
[1728144996375,1.5348,2409.1,2409.0,4.68693089]
[1728144998279,1.5348,2409.1,2409.0,4.97749089]
[1728145004092,1.6305,2409.4,2409.0,4.68693089]
[1728145004294,1.608,2409.3,2409.2,0.29052]
[1728145005382,1.608,2409.3,2409.2,0.29053]
[1728145005789,1.608,2409.3,2409.0,8.21748089]
[1728145005989,1.608,2409.3,2409.0,4.97748089]
[1728145006284,1.608,2409.3,2409.0,4.68693089]
[1728145006485,1.89853,2409.3,2409.0,4.97749089]
[1728145007087,1.608,2409.3,2409.0,4.97749089]
[1728145007391,1.89852,2409.3,2409.0,4.97749089]
[1728145007990,1.608,2409.3,2408.9,1.6737]
[1728145008287,0.29054,2409.2,2408.9,0.29057]
[1728145008486,1.6142,2409.1,2408.9,1.85717]
[1728145008994,1.6142,2409.1,2408.9,1.5666]
[1728145008995,3.1999,2409.0,2408.9,1.5666]
[1728145011993,3.1999,2409.0,2408.9,1.85717]
[1728145014999,3.1999,2409.0,2408.7,6.73839]
[1728145015198,3.49046,2409.0,2408.7,6.73839]
[1728145015394,3.1999,2409.0,2408.7,6.73839]
[1728145015593,3.1999,2409.0,2408.8,1.49]
[1728145015994,3.49046,2409.0,2408.8,1.49]
[1728145016692,3.1999,2409.0,2408.8,1.49]
[1728145016994,3.49046,2409.0,2408.8,1.49]
[1728145017200,4.28188491,2409.0,2408.8,1.49]
[1728145017406,4.28188491,2409.0,2408.8,1.78058]
[1728145017593,4.57245491,2409.0,2408.8,1.49]
[1728145017795,0.29057,2408.9,2408.8,1.49]
[1728145018298,4.28188491,2409.0,2408.8,1.49]
[1728145018491,4.28188491,2409.0,2408.8,1.78058]
[1728145018799,4.28188491,2409.0,2408.8,1.49]
[1728145019001,4.57244491,2409.0,2408.8,1.49]
[1728145019395,4.28188491,2409.0,2408.8,1.49]
[1728145019597,1.37255491,2408.9,2408.8,1.49]
[1728145019796,1.08198491,2408.9,2408.8,1.49]
[1728145019999,1.08198491,2409.0,2408.8,3.29568]
[1728145020190,1.08198491,2409.0,2408.8,3.29567]
[1728145020397,1.08198491,2409.0,2408.9,1.5507]
[1728145020695,1.08198491,2409.0,2408.8,1.49]
[1728145020997,1.08198491,2408.9,2408.8,1.49]
[1728145021198,1.37255491,2408.9,2408.8,1.49]
[1728145021397,1.08198491,2408.9,2408.8,5.6412]
[1728145021598,1.08198491,2409.2,2409.1,0.29055]
[1728145021899,1.08198491,2409.3,2409.1,1.78054]
[1728145022097,1.08198491,2409.2,2409.1,1.78054]
[1728145022293,1.37251491,2409.3,2409.1,3.0487]
[1728145022492,3.22610028,2409.2,2409.1,3.0487]
[1728145022692,3.51663028,2409.2,2409.1,3.0487]
[1728145022896,1.62400028,2409.2,2409.1,3.0487]
[1728145023098,1.62400028,2409.3,2409.2,0.29053]
[1728145023299,1.62400028,2409.3,2409.1,4.82924]
[1728145023606,1.08455065,2409.2,2409.1,4.82924]
[1728145023808,1.08455065,2409.2,2409.1,5.33631558]
[1728145025294,1.08455065,2409.2,2409.1,4.82925]
[1728145025599,1.08455065,2409.2,2409.1,5.045969]
[1728145025600,1.62400028,2409.2,2409.1,5.045969]
[1728145026105,1.62400028,2409.2,2409.1,2.020769]
[1728145026303,5.56966371,2409.2,2409.0,1.49]
[1728145026604,1.91853694,2409.1,2409.0,1.49]
[1728145026901,0.29055,2409.1,2409.0,1.49]
[1728145027310,1.91869674,2409.1,2409.0,1.99740356]
[1728145027509,0.29055,2409.1,2409.0,1.99740356]
[1728145027699,2.16533371,2409.1,2408.9,1.5945]
[1728145027901,1.85956,2409.0,2408.9,1.5945]
[1728145028199,1.569,2409.0,2408.9,2.10192036]
[1728145028401,1.569,2409.0,2408.8,3.0536]
[1728145028402,1.85956,2409.0,2408.8,3.0536]
[1728145028709,1.62850448,2408.9,2408.8,4.5916]
[1728145029208,1.62850448,2408.9,2408.8,5.0990529]
[1728145030005,1.62850448,2408.9,2408.8,3.5354529]
[1728145030212,0.29057,2408.9,2408.8,1.538]
[1728145030406,0.29057,2408.9,2408.8,2.04542191]
[1728145030407,1.91861406,2408.9,2408.8,2.04542191]
[1728145031412,0.29057,2408.9,2408.8,1.538]
[1728145031713,1.91804927,2408.9,2408.8,1.538]
[1728145031897,0.29057,2408.9,2408.8,1.538]
[1728145032509,1.91799537,2408.9,2408.8,1.538]
[1728145032703,0.29057,2408.9,2408.8,1.538]
[1728145033302,0.29058,2408.8,2408.7,1.49]
[1728145033804,1.91781274,2408.8,2408.7,1.49]
[1728145034107,3.53138,2408.8,2408.7,1.49]
[1728145034300,0.29059,2408.7,2408.6,1.49]
[1728145034502,0.29062,2408.5,2408.4,3.0076]
[1728145034706,1.9175123,2408.5,2408.4,3.0076]
[1728145034910,0.29062,2408.5,2408.4,3.0076]
[1728145035114,1.91746047,2408.5,2408.4,3.51493138]
[1728145035501,0.29063,2408.4,2408.3,3.013]
[1728145035810,6.45680987,2408.4,2408.2,1.5176]
[1728145036007,6.45680987,2408.4,2408.1,1.49]
[1728145036008,0.29066,2408.2,2408.1,1.49]
[1728145036314,1.91591597,2408.2,2408.1,1.49]
[1728145036612,7.04478371,2408.2,2407.8,1.5176]
[1728145036911,1.37413373,2407.9,2407.8,1.49]
[1728145037104,1.08344373,2407.9,2407.8,1.49]
[1728145037304,1.08270188,2407.9,2407.8,1.49]
[1728145037509,1.37339188,2407.9,2407.8,1.49]
[1728145038318,1.37339188,2407.9,2407.6,4.8465]
[1728145038319,1.08270188,2407.9,2407.6,4.8465]
[1728145038518,1.08270188,2407.9,2407.3,1.18358679]
[1728145038519,0.29075,2407.4,2407.3,0.096]
[1728145038812,0.29075,2407.4,2407.3,1.49]
[1728145039516,4.28970178,2407.5,2407.1,7.988]
[1728145039517,3.2078,2407.5,2407.1,7.988]
[1728145039715,3.2078,2407.5,2407.1,8.27879]
[1728145040012,0.29076,2407.4,2407.2,4.58019585]
[1728145040914,3.2078,2407.5,2407.2,4.58019585]
[1728145041109,2.70706738,2407.8,2407.7,0.29071]
[1728145041314,6.0538456,2408.0,2407.7,0.29071]
[1728145041612,0.29068,2408.0,2407.8,1.5824]
[1728145042505,0.29069,2407.9,2407.6,3.24]
[1728145042706,0.29071,2407.8,2407.6,3.24]
[1728145043012,1.08190178,2408.0,2407.5,6.4454]
[1728145043313,0.29073,2407.6,2407.5,1.5824]
[1728145045416,3.1227,2407.8,2407.5,1.5824]
[1728145045709,0.29073,2407.6,2407.5,1.5824]
[1728145045917,0.29072,2407.7,2407.5,1.5824]
[1728145046314,0.29073,2407.6,2407.5,1.5824]
[1728145047006,3.1227,2407.8,2407.5,1.5824]
[1728145047315,0.29073,2407.6,2407.5,1.5824]
[1728145052812,3.1227,2407.8,2407.3,3.24]
[1728145053018,0.29074,2407.5,2407.3,4.8273]
[1728145054114,1.6199,2407.7,2407.3,4.8273]
[1728145054317,0.29075,2407.4,2407.3,4.8273]
[1728145055523,1.6199,2407.7,2407.3,4.8273]
[1728145055721,0.29074,2407.5,2407.3,4.8273]
[1728145055926,1.6199,2407.7,2407.3,4.8273]
[1728145056219,0.29076,2407.3,2407.2,1.6185]
[1728145056424,6.0,2407.3,2406.9,3.3038]
[1728145056735,3.96685,2407.5,2406.9,3.2078]
[1728145056736,0.2908,2407.0,2406.9,3.2078]
[1728145057522,4.8046,2407.2,2406.9,3.2078]
[1728145057916,0.29079,2407.1,2406.9,3.2078]
[1728145058316,1.22177,2407.3,2407.0,3.53079]
[1728145058519,1.22177,2407.3,2407.1,3.1929]
[1728145059125,0.29077,2407.3,2407.1,3.1929]
[1728145059531,0.29075,2407.4,2407.1,3.48368]
[1728145060215,0.29074,2407.5,2407.2,0.29077]
[1728145060622,7.8788,2407.6,2407.1,3.1929]
[1728145060823,0.29075,2407.5,2407.2,0.29077]
[1728145062020,7.8788,2407.6,2407.2,3.24]
[1728145062226,0.29074,2407.5,2407.2,3.53077]
[1728145062624,8.16953,2407.6,2407.2,3.53077]
[1728145063224,8.16953,2407.6,2407.3,4.48756959]
[1728145063225,6.65423,2407.6,2407.3,4.48756959]
[1728145063418,3.2078,2407.6,2407.3,4.77832959]
[1728145063623,3.2078,2407.6,2407.5,0.29074]
[1728145063826,1.94409,2407.9,2407.4,7.3936]
[1728145063827,4.8612,2407.9,2407.4,7.3936]
[1728145064017,3.2078,2407.9,2407.6,3.53072]
[1728145064423,3.2078,2407.9,2407.7,4.43047482]
[1728145064631,1.97108,2408.0,2407.7,4.43047482]
[1728145064829,1.6804,2408.0,2407.7,4.43047482]
[1728145065126,1.6553,2408.1,2407.7,4.43047482]
[1728145065127,1.94597,2408.1,2407.7,4.43047482]
[1728145065633,1.94597,2408.1,2407.7,4.72118482]
[1728145066426,4.8612,2408.2,2407.8,3.24]
[1728145066625,4.8612,2408.2,2407.9,1.94819]
[1728145066927,4.8612,2408.2,2407.9,7.70129319]
[1728145066928,5.15186,2408.2,2407.9,7.70129319]
[1728145067622,4.8612,2408.2,2407.9,7.70129319]
[1728145067822,5.15186,2408.2,2407.9,7.70129319]
[1728145068022,3.2078,2408.2,2408.0,3.24]
[1728145068437,6.7094,2408.5,2408.1,7.91686578]
[1728145068438,1.92502,2408.5,2408.1,7.91686578]
[1728145068729,0.481,2408.9,2408.3,6.4478]
[1728145068933,0.29057,2408.9,2408.5,3.53062]
[1728145069133,7.4388,2409.0,2408.5,3.53062]
[1728145069430,6.5018,2409.0,2408.7,3.24]
[1728145069632,0.29054,2409.2,2408.8,0.29058]
[1728145069828,0.29054,2409.2,2408.9,3.1918]
[1728145070129,0.29056,2409.0,2408.9,3.1918]
[1728145070828,0.29055,2409.1,2408.9,3.1918]
[1728145073031,5.13273,2409.3,2408.9,3.1918]
[1728145073234,4.8422,2409.3,2408.9,3.1918]
[1728145073429,0.29054,2409.2,2408.9,3.1918]
[1728145073828,4.8422,2409.3,2408.9,3.1918]
[1728145074130,0.29054,2409.2,2408.9,3.1918]
[1728145074839,4.8422,2409.3,2408.9,3.1918]
[1728145075025,4.8422,2409.3,2409.0,4.71952774]
[1728145075026,5.13273,2409.3,2409.0,4.71952774]
[1728145075224,5.13273,2409.3,2409.0,7.95952774]
[1728145075225,1.6344,2409.3,2409.0,7.95952774]
[1728145075623,1.92492,2409.3,2409.0,7.95952774]
[1728145078135,1.6344,2409.3,2409.0,8.25007774]
[1728145078539,1.6344,2409.3,2409.0,7.95952774]
[1728145079029,1.6344,2409.3,2409.0,8.25008774]
[1728145079832,1.6596,2409.4,2409.0,7.95952774]
[1728145080034,3.2078,2409.6,2409.4,0.29051]
[1728145080035,4.838,2409.6,2409.4,0.29051]
[1728145080227,3.2078,2409.6,2409.4,3.53051]
[1728145080436,3.2078,2409.6,2409.5,3.2693]
[1728145080624,3.49829,2409.6,2409.5,3.2693]
[1728145080828,1.5726,2409.7,2409.2,3.2078]
[1728145080829,0.29051,2409.4,2409.2,3.2078]
[1728145081127,0.29051,2409.4,2409.0,1.99385]
[1728145081128,1.6302,2409.5,2409.1,3.2693]
[1728145081339,0.29054,2409.2,2408.9,6.4478]
[1728145081736,1.6302,2409.1,2409.0,4.41937263]
[1728145084643,1.92075,2409.1,2409.0,4.41937263]
[1728145084938,1.6302,2409.1,2409.0,4.41937263]
[1728145085145,0.29051,2409.4,2409.0,4.70992263]
[1728145085339,0.29051,2409.4,2409.1,0.29055]
[1728145085539,1.6345,2409.5,2409.0,7.65937263]
[1728145085733,0.29051,2409.4,2409.0,7.94992263]
[1728145085941,1.6345,2409.5,2409.0,7.65937263]
[1728145086231,1.6345,2409.5,2409.0,4.41937263]
[1728145086437,0.29053,2409.2,2409.0,4.41937263]
[1728145088040,3.49832,2409.4,2409.0,4.70992263]
[1728145088245,3.2078,2409.4,2409.2,0.29053]
[1728145088539,1.6345,2409.5,2409.3,1.643]
[1728145088740,1.6345,2409.5,2409.3,6.43979639]
[1728145089043,1.6345,2409.5,2409.3,5.17352]
[1728145089238,1.83969,2409.6,2409.3,5.17352]
[1728145089442,9.8238,2409.8,2409.4,4.51241334]
[1728145089738,0.2905,2409.5,2409.4,4.51241334]
[1728145089943,5.6858,2409.8,2409.4,4.51241334]
[1728145090145,0.29049,2409.6,2409.4,4.51241334]
[1728145090439,5.6858,2409.8,2409.4,4.51241334]
[1728145090840,0.29049,2409.6,2409.4,4.51241334]
[1728145091037,0.29047,2409.7,2409.4,4.51241334]
[1728145091237,0.2905,2409.5,2409.4,4.51241334]
[1728145094542,0.29049,2409.6,2409.4,4.51241334]
[1728145094739,0.29048,2409.7,2409.4,4.51241334]
[1728145095047,4.7488,2409.8,2409.4,4.80292334]
[1728145095240,3.50827,2409.8,2409.5,3.24]
[1728145095434,1.85647,2409.8,2409.5,3.24]
[1728145095740,1.85647,2409.8,2409.6,6.11871105]
[1728145096244,1.85647,2409.8,2409.7,1.5166]
[1728145098947,1.516,2410.0,2409.7,1.5166]
[1728145099245,3.49822,2410.2,2409.9,3.24]
[1728145099437,3.49822,2410.2,2409.8,0.29046]
[1728145099438,3.49822,2410.2,2410.0,4.839]
[1728145099641,3.49822,2410.2,2410.1,1.5561]
[1728145099841,3.49821,2410.2,2410.1,1.5561]
[1728145100048,3.2078,2410.2,2410.1,1.5561]
[1728145100537,3.2078,2410.2,2410.1,6.23405283]
[1728145101639,3.2078,2410.2,2410.1,16.67327283]
[1728145101841,1.90057,2410.6,2410.2,0.29041]
[1728145102140,1.90057,2410.6,2410.5,3.24]
[1728145102141,0.29037,2410.6,2410.5,3.24]
[1728145103146,0.29037,2410.6,2410.5,4.9114]
[1728145103941,4.7118,2410.8,2410.5,4.9114]
[1728145104244,3.49813,2410.9,2410.7,3.24]
[1728145104438,3.49813,2410.9,2410.8,1.6742]
[1728145104834,0.29033,2410.9,2410.8,1.6742]
[1728145105044,0.29033,2410.9,2410.5,4.9114]
[1728145105045,4.148,2410.9,2410.5,4.9114]
[1728145105239,0.29036,2410.6,2410.5,4.9114]
[1728145107041,3.43906,2410.7,2410.5,4.9114]
[1728145107436,3.1487,2410.7,2410.5,4.9114]
[1728145107651,1.6167,2410.7,2410.5,4.9114]
[1728145107850,0.29035,2410.7,2410.5,4.9114]
[1728145108246,1.86495,2410.8,2410.5,4.9114]
[1728145108949,1.86495,2410.8,2410.6,4.77750229]
[1728145109149,0.29035,2410.7,2410.6,4.77750229]
[1728145109446,3.2078,2410.9,2410.6,4.77750229]
[1728145109751,3.2078,2410.9,2410.7,3.24]
[1728145110144,3.2078,2410.9,2410.8,1.6663]
[1728145110350,3.2078,2410.9,2410.8,6.06859905]
[1728145110747,1.6122,2411.1,2410.8,6.06859905]
[1728145110948,0.29032,2411.0,2410.9,1.5978]
[1728145111250,1.6122,2411.1,2410.9,1.5978]
[1728145112048,5.1035,2411.2,2410.9,4.8378]
[1728145112049,3.2078,2411.2,2410.9,4.8378]
[1728145112349,3.49809,2411.2,2410.9,4.8378]
[1728145113250,0.29029,2411.2,2410.9,4.8378]
[1728145113844,0.29029,2411.2,2411.0,4.54466284]
[1728145115553,0.2903,2411.2,2411.0,4.54466284]
[1728145115757,1.5825,2411.3,2411.0,4.54466284]
[1728145116456,0.29029,2411.2,2411.0,4.54466284]
[1728145116959,0.2903,2411.1,2411.0,4.54466284]
[1728145120149,1.5766,2411.4,2411.0,4.54466284]
[1728145120346,1.86687,2411.4,2411.2,3.24]
[1728145120749,1.86687,2411.4,2411.3,6.27673304]
[1728145121957,1.86687,2411.4,2411.3,7.93773304]
[1728145124158,1.5766,2411.4,2411.3,7.93773304]
[1728145124362,1.83376,2411.5,2411.3,7.93773304]
[1728145124963,1.5435,2411.5,2411.3,7.93773304]
[1728145125258,3.117,2411.6,2411.3,7.93773304]
[1728145125456,1.85605,2411.6,2411.4,3.24]
[1728145125657,1.5658,2411.6,2411.4,3.24]
[1728145126754,0.29024,2411.7,2411.4,3.24]
[1728145127156,7.947,2411.8,2411.6,3.24]
[1728145127358,6.60093,2411.8,2411.7,3.2124]
[1728145127552,6.60093,2411.8,2411.7,7.56100309]
[1728145128060,0.29024,2411.6,2411.5,3.24]
[1728145128358,6.3107,2411.8,2411.5,3.24]
[1728145128359,0.29024,2411.7,2411.5,3.24]
[1728145128563,0.29024,2411.7,2411.5,4.884]
[1728145128755,0.29024,2411.7,2411.5,6.4434]
[1728145129062,6.3107,2411.8,2411.5,6.4434]
[1728145129265,0.29024,2411.7,2411.5,6.4434]
[1728145129467,6.3107,2411.8,2411.6,7.9639908]
[1728145129660,0.29023,2411.7,2411.6,7.9639908]
[1728145130267,3.1029,2411.8,2411.6,7.9639908]
[1728145130562,3.39313,2411.8,2411.6,7.9639908]
[1728145130764,0.29023,2411.7,2411.6,7.9639908]
[1728145131159,0.29022,2411.8,2411.6,7.9639908]
[1728145131354,0.29023,2411.8,2411.6,7.9639908]
[1728145132167,3.2479,2411.9,2411.6,7.9639908]
[1728145132363,0.29023,2411.8,2411.6,7.9639908]
[1728145133063,0.29022,2411.8,2411.6,7.9639908]
[1728145133266,0.29023,2411.7,2411.6,7.9639908]
[1728145134463,0.2902,2412.0,2411.7,0.29023]
[1728145134674,0.29022,2411.9,2411.8,3.24]
[1728145134862,0.29022,2411.9,2411.8,7.66415885]
[1728145136064,0.2902,2412.0,2411.8,7.66415885]
[1728145136261,4.8167,2412.1,2411.8,7.66415885]
[1728145136472,0.29021,2411.9,2411.8,7.66415885]
[1728145136774,0.2902,2412.0,2411.8,7.66415885]
[1728145137571,0.29021,2411.9,2411.8,7.66415885]
[1728145140874,4.7646,2412.0,2411.6,3.24]
[1728145140875,0.29024,2411.7,2411.6,3.24]
[1728145141272,0.29024,2411.7,2411.6,8.00362881]
[1728145142375,0.29023,2411.8,2411.6,8.00362881]
[1728145146185,5.84650178,2412.0,2411.6,8.00362881]
[1728145146381,0.29022,2411.9,2411.6,8.00362881]
[1728145146584,1.37212178,2411.9,2411.6,8.00362881]
[1728145147376,1.08190178,2411.9,2411.8,3.24]
[1728145147677,4.18890178,2412.0,2411.8,3.24]
[1728145147882,2.63780178,2412.0,2411.9,1.5568]
[1728145148081,1.5559,2412.0,2411.9,3.2291]
[1728145150086,1.8461,2412.0,2411.9,3.2291]
[1728145150279,1.5559,2412.0,2411.9,3.2291]
[1728145152890,1.08190178,2412.1,2411.9,3.2291]
[1728145153102,2.94628178,2412.2,2412.0,3.24]
[1728145153495,1.37208178,2412.1,2412.0,3.24]
[1728145156396,1.9153456,2412.1,2412.0,3.24]
[1728145156895,0.29018,2412.1,2412.0,3.24]
[1728145157297,1.9153456,2412.1,2412.0,3.24]
[1728145159003,8.9785656,2412.1,2411.8,3.24]
[1728145159192,8.9785656,2412.1,2411.6,3.24]
[1728145159193,0.29023,2411.8,2411.6,3.24]
[1728145159498,0.29023,2411.8,2411.5,1.6099]
[1728145159499,3.0973,2411.7,2411.5,1.6099]
[1728145159700,6.33290719,2411.7,2411.6,1.49]
[1728145160005,4.7067,2411.7,2411.6,1.49]
[1728145160393,6.33290719,2411.7,2411.6,1.49]
[1728145160699,3.21020719,2411.7,2411.6,1.49]
[1728145160898,2.66824536,2411.7,2411.6,1.49]
[1728145161201,1.08424536,2411.7,2411.6,1.49]
[1728145161604,1.08424536,2411.7,2411.6,3.24]
[1728145163608,1.62620719,2411.7,2411.6,3.24]
[1728145166397,1.62620719,2411.7,2411.5,1.90015]
[1728145166594,1.62816237,2411.7,2411.6,3.24]
[1728145166797,1.62816237,2411.7,2411.6,7.85184881]
[1728145168100,1.91839237,2411.7,2411.6,7.85184881]
[1728145168308,0.29023,2411.7,2411.6,7.85184881]
[1728145168500,2.45556371,2411.7,2411.6,7.85184881]
[1728145170599,2.16533371,2411.7,2411.6,7.85184881]
[1728145171405,2.16533371,2411.7,2411.6,8.35900283]
[1728145171801,2.16533371,2411.7,2411.6,7.85184881]
[1728145172306,2.16533371,2411.7,2411.6,8.35904966]
[1728145172605,2.16533371,2411.7,2411.6,7.85184881]
[1728145172908,3.0026536,2411.8,2411.6,7.85184881]
[1728145173109,2.17258707,2411.7,2411.6,7.85184881]
[1728145174013,2.17258707,2411.7,2411.6,8.35907025]
[1728145174206,2.17258707,2411.7,2411.6,7.85184881]
[1728145175098,2.17258707,2411.7,2411.6,8.3590997]
[1728145175302,2.17258707,2411.7,2411.6,7.85184881]
[1728145175502,2.46281707,2411.7,2411.6,7.85184881]
[1728145175707,0.29023,2411.7,2411.6,7.85184881]
[1728145176009,2.46291059,2411.7,2411.6,7.85184881]
[1728145176401,0.29023,2411.7,2411.6,7.85184881]
[1728145176604,2.46294065,2411.7,2411.6,7.85184881]
[1728145177407,0.29023,2411.7,2411.6,7.85184881]
[1728145177608,2.46288079,2411.7,2411.6,7.85184881]
[1728145178416,0.29023,2411.7,2411.6,7.85184881]
[1728145178623,2.46288951,2411.7,2411.6,7.85184881]
[1728145179116,2.46289833,2411.7,2411.6,7.85184881]
[1728145181512,2.46289833,2411.7,2411.6,6.10184881]
[1728145181714,0.29023,2411.7,2411.6,6.10184881]
[1728145181914,2.46288837,2411.7,2411.6,6.10184881]
[1728145182210,0.29028,2411.3,2411.2,1.49]
[1728145182515,2.17251458,2411.3,2411.2,1.49]
[1728145182701,2.46279458,2411.3,2411.2,1.99720481]
[1728145182902,2.46279458,2411.3,2411.2,2.50441743]